fUSD/lending_fUSD_20260430
["ID","MTS","AMOUNT","RATE_DAILY","PERIOD"]
[421357530,1777491050000,-576.0,0.00027009,2]
[421357532,1777491050000,-500.0,0.00027009,2]
[421357526,1777491050000,-500.0,0.00027009,2]
[421357525,1777491050000,-500.0,0.00027009,2]
[421357527,1777491050000,-500.0,0.00027009,2]
[421357528,1777491050000,-500.0,0.00027009,2]
[421357529,1777491050000,-500.0,0.00027009,2]
[421357524,1777491050000,-500.0,0.00027009,2]
[421357535,1777491050000,-500.0,0.00027009,2]
[421357533,1777491050000,-500.0,0.00027009,2]
[421357536,1777491050000,-500.0,0.00027009,2]
[421357539,1777491050000,-500.0,0.00027009,2]
[421357537,1777491050000,-500.0,0.00027009,2]
[421357540,1777491050000,-500.0,0.00027009,2]
[421357538,1777491050000,-500.0,0.00027009,2]
[421357543,1777491050000,-500.0,0.00027009,2]
[421357541,1777491050000,-500.0,0.00027009,2]
[421357542,1777491050000,-500.0,0.00027009,2]
[421357544,1777491050000,-500.0,0.00027009,2]
[421357545,1777491050000,-500.0,0.00027009,2]
[421357519,1777491050000,-500.0,0.00027009,2]
[421357549,1777491050000,-500.0,0.00027009,2]
[421357534,1777491050000,-500.0,0.00027009,2]
[421357520,1777491050000,-500.0,0.00027009,2]
[421357505,1777491050000,-500.0,0.00027009,2]
[421357512,1777491050000,-500.0,0.00027009,2]
[421357550,1777491050000,-500.0,0.00027009,2]
[421357492,1777491050000,-500.0,0.00027009,2]
[421357493,1777491050000,-500.0,0.00027009,2]
[421357494,1777491050000,-500.0,0.00027009,2]
[421357495,1777491050000,-500.0,0.00027009,2]
[421357496,1777491050000,-500.0,0.00027009,2]
[421357497,1777491050000,-500.0,0.00027009,2]
[421357498,1777491050000,-500.0,0.00027009,2]
[421357499,1777491050000,-500.0,0.00027009,2]
[421357509,1777491050000,-500.0,0.00027009,2]
[421357500,1777491050000,-500.0,0.00027009,2]
[421357507,1777491050000,-500.0,0.00027009,2]
[421357502,1777491050000,-500.0,0.00027009,2]
[421357506,1777491050000,-500.0,0.00027009,2]
[421357501,1777491050000,-500.0,0.00027009,2]
[421357504,1777491050000,-554.0,0.00027009,2]
[421357503,1777491050000,-500.0,0.00027009,2]
[421357508,1777491050000,-500.0,0.00027009,2]
[421357511,1777491050000,-500.0,0.00027009,2]
[421357521,1777491050000,-500.0,0.00027009,2]
[421357510,1777491050000,-500.0,0.00027009,2]
[421357513,1777491050000,-500.0,0.00027009,2]
[421357514,1777491050000,-500.0,0.00027009,2]
[421357517,1777491050000,-500.0,0.00027009,2]
[421357515,1777491050000,-500.0,0.00027009,2]
[421357518,1777491050000,-500.0,0.00027009,2]
[421357548,1777491050000,-500.0,0.00027009,2]
[421357516,1777491050000,-500.0,0.00027009,2]
[421357546,1777491050000,-500.0,0.00027009,2]
[421357588,1777491050000,-500.0,0.00027009,2]
[421357580,1777491050000,-500.0,0.00027009,2]
[421357589,1777491050000,-500.0,0.00027009,2]
[421357582,1777491050000,-500.0,0.00027009,2]
[421357583,1777491050000,-500.0,0.00027009,2]
[421357585,1777491050000,-500.0,0.00027009,2]
[421357584,1777491050000,-500.0,0.00027009,2]
[421357586,1777491050000,-500.0,0.00027009,2]
[421357591,1777491050000,-500.0,0.00027009,2]
[421357590,1777491050000,-500.0,0.00027009,2]
[421357592,1777491050000,-395.38304612,0.00027098,2]
[421357601,1777491050000,-24665.56,0.00027397,10]
[421357579,1777491050000,-500.0,0.00027009,2]
[421357594,1777491050000,-10007.44599998,0.00027297,2]
[421357595,1777491050000,-2000.0,0.000273,2]
[421357596,1777491050000,-2000.0,0.000273,2]
[421357600,1777491050000,-29598.67,0.00027397,10]
[421357598,1777491050000,-300.0,0.00027397,2]
[421357599,1777491050000,-18957.3,0.00027397,10]
[421357597,1777491050000,-1500.0,0.00027397,2]
[421357602,1777491050000,-1000.0,0.00027398,2]
[421357605,1777491050000,-162.31979731,0.000274,7]
[421357603,1777491050000,-230.68,0.000274,2]
[421357604,1777491050000,-45394.77,0.000274,7]
[421357606,1777491050000,-150.0,0.00027671,2]
[421357547,1777491050000,-500.0,0.00027009,2]
[421357593,1777491050000,-506.0,0.00027137,2]
[421357581,1777491050000,-500.0,0.00027009,2]
[421357587,1777491050000,-500.0,0.00027009,2]
[421357575,1777491050000,-500.0,0.00027009,2]
[421357552,1777491050000,-500.0,0.00027009,2]
[421357554,1777491050000,-500.0,0.00027009,2]
[421357551,1777491050000,-500.0,0.00027009,2]
[421357553,1777491050000,-500.0,0.00027009,2]
[421357577,1777491050000,-500.0,0.00027009,2]
[421357562,1777491050000,-500.0,0.00027009,2]
[421357556,1777491050000,-500.0,0.00027009,2]
[421357558,1777491050000,-500.0,0.00027009,2]
[421357557,1777491050000,-500.0,0.00027009,2]
[421357559,1777491050000,-500.0,0.00027009,2]
[421357564,1777491050000,-500.0,0.00027009,2]
[421357560,1777491050000,-500.0,0.00027009,2]
[421357565,1777491050000,-500.0,0.00027009,2]
[421357555,1777491050000,-500.0,0.00027009,2]
[421357561,1777491050000,-500.0,0.00027009,2]
[421357563,1777491050000,-500.0,0.00027009,2]
[421357574,1777491050000,-500.0,0.00027009,2]
[421357569,1777491050000,-500.0,0.00027009,2]
[421357572,1777491050000,-500.0,0.00027009,2]
[421357573,1777491050000,-500.0,0.00027009,2]
[421357570,1777491050000,-500.0,0.00027009,2]
[421357576,1777491050000,-500.0,0.00027009,2]
[421357578,1777491050000,-500.0,0.00027009,2]
[421357568,1777491050000,-500.0,0.00027009,2]
[421357567,1777491050000,-500.0,0.00027009,2]
[421357566,1777491050000,-500.0,0.00027009,2]
[421357571,1777491050000,-500.0,0.00027009,2]
[421357624,1777491051000,-1000.0,0.00028977,7]
[421357618,1777491051000,-178.47,0.00028,2]
[421357623,1777491051000,-1000.0,0.00028767,2]
[421357622,1777491051000,-506.0,0.00028739,3]
[421357621,1777491051000,-1000.0,0.00028722,2]
[421357620,1777491051000,-1000.0,0.0002831,30]
[421357614,1777491051000,-162.15,0.00027692,2]
[421357619,1777491051000,-2000.0,0.00028073,2]
[421357615,1777491051000,-162.15,0.00027692,2]
[421357609,1777491051000,-162.15,0.00027688,2]
[421357616,1777491051000,-162.15,0.00027692,2]
[421357613,1777491051000,-162.1,0.00027692,2]
[421357610,1777491051000,-162.15,0.0002769,2]
[421357608,1777491051000,-162.15,0.00027688,2]
[421357607,1777491051000,-162.15,0.00027688,2]
[421357612,1777491051000,-162.15,0.0002769,2]
[421357611,1777491051000,-162.15,0.0002769,2]
[421357625,1777491051000,-1663.0,0.00029032,2]
[421357617,1777491051000,-1000.0,0.00027854,7]
[421357626,1777491051000,-211.0,0.0002917,5]
[421357636,1777491051000,-500.0,0.00029799,2]
[421357627,1777491051000,-150.32,0.00029178,2]
[421357628,1777491051000,-1000.0,0.00029223,7]
[421357646,1777491051000,-500.0,0.00029799,2]
[421357648,1777491051000,-27153.50930273,0.000298,7]
[421357642,1777491051000,-500.0,0.00029799,2]
[421357643,1777491051000,-500.0,0.00029799,2]
[421357641,1777491051000,-455.96245871,0.00029799,2]
[421357645,1777491051000,-500.0,0.00029799,2]
[421357638,1777491051000,-500.0,0.00029799,2]
[421357639,1777491051000,-500.0,0.00029799,2]
[421357644,1777491051000,-500.0,0.00029799,2]
[421357640,1777491051000,-500.0,0.00029799,2]
[421357647,1777491051000,-500.0,0.00029799,2]
[421357633,1777491051000,-500.0,0.00029799,2]
[421357632,1777491051000,-500.0,0.00029799,2]
[421357637,1777491051000,-500.0,0.00029799,2]
[421357635,1777491051000,-500.0,0.00029799,2]
[421357634,1777491051000,-500.0,0.00029799,2]
[421357631,1777491051000,-1000.0,0.0002968,30]
[421357630,1777491051000,-150.0,0.00029534,2]
[421357629,1777491051000,-1000.0,0.00029232,30]
[421357650,1777491406000,2828.64671851,8.5e-05,3]
[421357652,1777491443000,1216.0,0.000287,120]
[421357651,1777491443000,1216.0,0.00026308,120]
[421357657,1777492231000,-221.69,0.0001,2]
[421357659,1777492231000,-345.19728589,0.00010125,2]
[421357658,1777492231000,-78.31,0.00010125,2]
[421357660,1777492231000,-354.35040988,0.00010125,2]
[421357663,1777492231000,-657.57283851,0.00010501,2]
[421357662,1777492231000,-1842.42716149,0.00010501,2]
[421357661,1777492231000,-1722.14230423,0.00010125,2]
[421357682,1777492232000,-2000.0,0.00018191,2]
[421357683,1777492232000,-172.9,0.00018226,2]
[421357684,1777492232000,-166.66,0.00018424,2]
[421357685,1777492232000,-421.03157931,0.0001853,2]
[421357687,1777492232000,-419.02914301,0.0001853,2]
[421357686,1777492232000,-1030.13421599,0.0001853,2]
[421357693,1777492232000,-172.58626172,0.00018823,7]
[421357688,1777492232000,-1494.53234039,0.0001853,2]
[421357689,1777492232000,-200.0,0.00018695,2]
[421357691,1777492232000,-166.66,0.00018796,2]
[421357690,1777492232000,-172.58626173,0.00018774,7]
[421357692,1777492232000,-172.58626172,0.00018799,7]
[421357694,1777492232000,-814.59,0.00018856,2]
[421357680,1777492232000,-499.99,0.00018052,2]
[421357695,1777492232000,-535.07,0.00018856,2]
[421357678,1777492232000,-1000.0,0.0001794,2]
[421357671,1777492232000,-300.0,0.00011,2]
[421357681,1777492232000,-162.31979731,0.00018111,2]
[421357697,1777492232000,-107.65145758,0.00018856,2]
[421357664,1777492232000,-300.0,0.00010998,2]
[421357668,1777492232000,-1636.55372388,0.00011,2]
[421357665,1777492232000,-300.0,0.00010999,2]
[421357666,1777492232000,-1200.0,0.00010999,2]
[421357667,1777492232000,-4079.11,0.00011,2]
[421357679,1777492232000,-166.66,0.00018052,2]
[421357669,1777492232000,-2442.55627612,0.00011,2]
[421357672,1777492232000,-2356.55946797,0.00011,2]
[421357673,1777492232000,-143.44053203,0.00011,2]
[421357674,1777492232000,-2500.0,0.00011,2]
[421357675,1777492232000,-4079.11,0.000161,2]
[421357676,1777492232000,-2000.0,0.000162,2]
[421357677,1777492232000,-166.66,0.00017679,2]
[421357670,1777492232000,-2500.0,0.00011,2]
[421357704,1777492232000,-311.94,0.00018856,2]
[421357778,1777492232000,-1564.62421589,0.00019413,2]
[421357711,1777492232000,-1819.35652797,0.00019137,2]
[421357758,1777492232000,-5775.7447491,0.00019413,2]
[421357749,1777492232000,-11411.284576,0.00019413,2]
[421357760,1777492232000,-24585.78148199,0.00019413,2]
[421357755,1777492232000,-749.6440699,0.00019413,2]
[421357753,1777492232000,-454.02947525,0.00019413,2]
[421357762,1777492232000,-5535.49871986,0.00019413,2]
[421357747,1777492232000,-3558.96512418,0.00019413,2]
[421357764,1777492232000,-1898.12028,0.00019413,2]
[421357771,1777492232000,-1855.39247416,0.00019413,2]
[421357769,1777492232000,-4639.39429941,0.00019413,2]
[421357775,1777492232000,-488.39471186,0.00019413,2]
[421357774,1777492232000,-1557.27262659,0.00019413,2]
[421357777,1777492232000,-489.75725921,0.00019413,2]
[421357776,1777492232000,-1471.73737794,0.00019413,2]
[421357767,1777492232000,-1991.4070198,0.00019413,2]
[421357739,1777492232000,-693.69606344,0.00019413,2]
[421357744,1777492232000,-1300.57826522,0.00019413,2]
[421357718,1777492232000,-172.58626172,0.00019395,7]
[421357713,1777492232000,-166.66,0.00019168,2]
[421357706,1777492232000,-200.0,0.00019047,2]
[421357709,1777492232000,-150.0,0.00019133,2]
[421357702,1777492232000,-10014.24,0.00018856,2]
[421357700,1777492232000,-1376.33854242,0.00018856,2]
[421357716,1777492232000,-172.58626172,0.0001939,7]
[421357742,1777492232000,-502.40965066,0.00019413,2]
[421357707,1777492232000,-1216.0,0.00019133,2]
[421357722,1777492232000,-251247.06887542,0.00019413,2]
[421357735,1777492232000,-20121.77911205,0.00019413,2]
[421357729,1777492232000,-2012.4399164,0.00019413,2]
[421357731,1777492232000,-2827.68173886,0.00019413,2]
[421357727,1777492232000,-1833.51726259,0.00019413,2]
[421357737,1777492232000,-891.25508904,0.00019413,2]
[421357724,1777492232000,-1369.51623453,0.00019413,2]
[421357720,1777492232000,-172.58626172,0.00019397,7]
[421357784,1777492238000,-380.52932165,0.00019412,2]
[421357785,1777492238000,-119.47067835,0.00019412,2]
[421357786,1777492238000,-500.0,0.00019412,2]
[421357788,1777492238000,-624.55612334,0.00019412,2]
[421357789,1777492238000,-478.96457653,0.00019412,2]
[421357791,1777492238000,-18400.05366801,0.00019413,2]
[421357790,1777492238000,-500.0,0.00019412,2]
[421357787,1777492238000,-208.95588812,0.00019412,2]
[421357829,1777492240000,-282.21,0.00022466,2]
[421357812,1777492240000,-3608.4057634,0.0002,2]
[421357810,1777492240000,-2000.0,0.000199,2]
[421357818,1777492240000,-168.0,0.00021,2]
[421357809,1777492240000,-1100.0,0.000198,7]
[421357816,1777492240000,-2000.0,0.00020465,2]
[421357817,1777492240000,-363.87130559,0.00020548,10]
[421357824,1777492240000,-1216.0,0.00021525,2]
[421357811,1777492240000,-2300.0,0.000199,7]
[421357821,1777492240000,-150.0,0.00021339,2]
[421357822,1777492240000,-1663.0,0.00021339,2]
[421357823,1777492240000,-6036.0,0.00021339,2]
[421357826,1777492240000,-384.0,0.00022,2]
[421357828,1777492240000,-197.72844742,0.00022407,2]
[421357819,1777492240000,-168.0,0.00021,2]
[421357820,1777492240000,-384.0,0.00021,2]
[421357813,1777492240000,-154.0,0.0002,2]
[421357808,1777492240000,-2000.0,0.00019614,2]
[421357793,1777492240000,-674128.83056264,0.00019413,2]
[421357794,1777492240000,-2707.0,0.00019413,5]
[421357796,1777492240000,-1005.0,0.00019413,5]
[421357798,1777492240000,-172.58626172,0.00019442,7]
[421357797,1777492240000,-2500.0,0.00019429,2]
[421357799,1777492240000,-5000.0,0.00019513,2]
[421357795,1777492240000,-657.0,0.00019413,5]
[421357801,1777492240000,-1518.82050833,0.00019513,2]
[421357800,1777492240000,-2500.0,0.00019513,2]
[421357803,1777492240000,-500.0,0.00019612,2]
[421357804,1777492240000,-500.0,0.00019612,2]
[421357805,1777492240000,-500.0,0.00019612,2]
[421357802,1777492240000,-166.66,0.0001954,2]
[421357806,1777492240000,-500.0,0.00019612,2]
[421357807,1777492240000,-10251.4275,0.00019614,2]
[421357814,1777492240000,-154.0,0.0002,2]
[421357827,1777492240000,-197.72844744,0.00022407,2]
[421357815,1777492240000,-384.0,0.0002,2]
[421357830,1777492240000,-702.23,0.00022562,2]
[421357850,1777492240000,-1000.0,0.00024658,2]
[421357851,1777492240000,-150.0,0.00024658,2]
[421357852,1777492240000,-3400.0,0.000249,9]
[421357854,1777492240000,-2000.0,0.00025013,2]
[421357855,1777492240000,-400.0,0.00025205,2]
[421357856,1777492240000,-4371.09833932,0.00025614,2]
[421357853,1777492240000,-398.0,0.00025,2]
[421357863,1777492240000,-150.0,0.00027339,2]
[421357861,1777492240000,-2000.0,0.00027287,2]
[421357858,1777492240000,-162.31979731,0.000264,3]
[421357859,1777492240000,-1518.82050827,0.00027032,2]
[421357864,1777492240000,-1663.0,0.00027339,2]
[421357860,1777492240000,-230.0,0.00027123,2]
[421357862,1777492240000,-2000.0,0.000273,2]
[421357825,1777492240000,-5000.0,0.00021918,2]
[421357849,1777492240000,-150.0,0.00024658,2]
[421357843,1777492240000,-1216.0,0.00023916,2]
[421357857,1777492240000,-500.0,0.00026006,2]
[421357846,1777492240000,-150.0,0.00024339,2]
[421357848,1777492240000,-5406.603,0.00024339,2]
[421357831,1777492240000,-461.27,0.00022562,2]
[421357835,1777492240000,-2000.0,0.00022739,2]
[421357833,1777492240000,-8632.95,0.00022562,2]
[421357837,1777492240000,-241.26921708,0.000229,2]
[421357832,1777492240000,-1279.3,0.00022562,2]
[421357839,1777492240000,-1674.97212939,0.00023,2]
[421357836,1777492240000,-4371.09833933,0.000229,2]
[421357834,1777492240000,-296.11,0.00022562,2]
[421357840,1777492240000,-384.0,0.00023,2]
[421357841,1777492240000,-1518.82050827,0.00023273,2]
[421357842,1777492240000,-2000.0,0.000236,2]
[421357845,1777492240000,-4079.11,0.000241,2]
[421357847,1777492240000,-1663.0,0.00024339,2]
[421357844,1777492240000,-384.0,0.00024,2]
[421357838,1777492240000,-311291.49482825,0.00023,2]
[421357883,1777492241000,-4371.09833932,0.00028329,2]
[421357890,1777492241000,-151.0,0.00029169,5]
[421357887,1777492241000,-250.0,0.00028827,12]
[421357888,1777492241000,-1000.0,0.00028942,7]
[421357899,1777492241000,-151.0,0.00029169,5]
[421357889,1777492241000,-578.20924308,0.00029169,5]
[421357891,1777492241000,-151.0,0.00029169,5]
[421357892,1777492241000,-151.0,0.00029169,5]
[421357903,1777492241000,-500.0,0.00029256,2]
[421357897,1777492241000,-151.0,0.00029169,5]
[421357896,1777492241000,-151.0,0.00029169,5]
[421357898,1777492241000,-151.0,0.00029169,5]
[421357895,1777492241000,-151.0,0.00029169,5]
[421357893,1777492241000,-151.0,0.00029169,5]
[421357911,1777492241000,-507.728049,0.00029276,7]
[421357884,1777492241000,-1000.0,0.00028652,2]
[421357894,1777492241000,-151.0,0.00029169,5]
[421357886,1777492241000,-250.0,0.00028827,12]
[421357865,1777492241000,-12304.0,0.0002737,2]
[421357877,1777492241000,-1000.0,0.00027854,7]
[421357904,1777492241000,-441388.4217954,0.00029276,2]
[421357875,1777492241000,-162.73,0.00027671,2]
[421357876,1777492241000,-1000.0,0.00027687,11]
[421357873,1777492241000,-318.11,0.000274,7]
[421357867,1777492241000,-1500.0,0.00027397,2]
[421357868,1777492241000,-300.0,0.00027397,2]
[421357866,1777492241000,-524.41357788,0.00027397,2]
[421357885,1777492241000,-1000.0,0.00028767,2]
[421357871,1777492241000,-1000.0,0.00027398,2]
[421357869,1777492241000,-1460.69,0.00027397,2]
[421357870,1777492241000,-14274.05,0.00027397,10]
[421357878,1777492241000,-162.31979731,0.00027854,7]
[421357882,1777492241000,-1000.0,0.0002831,30]
[421357879,1777492241000,-178.47,0.00028,2]
[421357880,1777492241000,-178.47,0.00028,2]
[421357881,1777492241000,-162.31979731,0.000282,7]
[421357872,1777492241000,-94883.4,0.000274,7]
[421357901,1777492241000,-1000.0,0.00029223,7]
[421357874,1777492241000,-162.31979731,0.000274,7]
[421357902,1777492241000,-1000.0,0.00029232,30]
[421357924,1777492241000,-200.0,0.00030098,2]
[421357927,1777492241000,-500.0,0.000301,2]
[421357929,1777492241000,-500.0,0.000301,2]
[421357933,1777492241000,-500.0,0.000301,2]
[421357928,1777492241000,-500.0,0.000301,2]
[421357930,1777492241000,-500.0,0.000301,2]
[421357931,1777492241000,-500.0,0.000301,2]
[421357926,1777492241000,-500.0,0.000301,2]
[421357934,1777492241000,-500.0,0.000301,2]
[421357941,1777492241000,-500.0,0.000301,2]
[421357937,1777492241000,-500.0,0.000301,2]
[421357938,1777492241000,-500.0,0.000301,2]
[421357942,1777492241000,-153.11309763,0.000301,2]
[421357939,1777492241000,-500.0,0.000301,2]
[421357940,1777492241000,-500.0,0.000301,2]
[421357908,1777492241000,-507.728049,0.00029276,7]
[421357932,1777492241000,-500.0,0.000301,2]
[421357925,1777492241000,-4079.11,0.000301,2]
[421357936,1777492241000,-500.0,0.000301,2]
[421357919,1777492241000,-181.9356528,0.00029452,30]
[421357909,1777492241000,-507.728049,0.00029276,7]
[421357910,1777492241000,-507.728049,0.00029276,7]
[421357900,1777492241000,-151.0,0.00029169,5]
[421357906,1777492241000,-151.0,0.00029276,7]
[421357905,1777492241000,-6899.5011278,0.00029276,2]
[421357935,1777492241000,-500.0,0.000301,2]
[421357923,1777492241000,-4600.0,0.000299,10]
[421357913,1777492241000,-205.0,0.00029276,7]
[421357907,1777492241000,-151.0,0.00029276,7]
[421357914,1777492241000,-151.0,0.00029276,7]
[421357915,1777492241000,-437.1295,0.00029276,7]
[421357918,1777492241000,-437.1295,0.00029276,7]
[421357916,1777492241000,-437.1295,0.00029276,7]
[421357922,1777492241000,-200.0,0.000298,2]
[421357921,1777492241000,-1000.0,0.0002968,30]
[421357917,1777492241000,-437.1295,0.00029276,7]
[421357920,1777492241000,-150.0,0.00029534,2]
[421357912,1777492241000,-151.0,0.00029276,7]
[421357962,1777492243000,-1500.0,0.00027397,2]
[421357966,1777492243000,-7597.09933657,0.00029159,10]
[421357965,1777492243000,-1000.0,0.00028941,7]
[421357964,1777492243000,-1000.0,0.00028651,2]
[421357963,1777492243000,-1000.0,0.00027398,2]
[421357976,1777492246000,-506.0,0.00027137,2]
[421357977,1777492246000,-1000.0,0.00027854,7]
[421357975,1777492246000,-222.25191368,0.00019312,2]
[421357978,1777492246000,-510.17185486,0.0002831,30]
[421357981,1777492330000,1600.0,0.00028378,120]
[421357983,1777493262000,320.0,0.00027949,120]
[421357982,1777493262000,320.0,0.0002562,120]
[421358011,1777493433000,-1000.0,0.00018865,2]
[421358009,1777493433000,-320.0,0.00018633,2]
[421358008,1777493433000,-250.0,0.00017598,2]
[421358007,1777493433000,-300.0,0.00017587,2]
[421358002,1777493433000,-279.9324,0.00015999,2]
[421358004,1777493433000,-279.0,0.00016099,2]
[421358005,1777493433000,-2000.0,0.000162,2]
[421358003,1777493433000,-300.0,0.00016099,2]
[421358001,1777493433000,-610.97250991,0.00015998,2]
[421357999,1777493433000,-162.31979731,0.00015942,2]
[421358000,1777493433000,-300.0,0.00015993,2]
[421357998,1777493433000,-2051.07050251,0.00015928,2]
[421357997,1777493433000,-448.92949749,0.00015928,2]
[421357996,1777493433000,-222.25191368,0.00015905,2]
[421358006,1777493433000,-2500.0,0.00017496,2]
[421358012,1777493433000,-200.0,0.00018888,2]
[421358010,1777493433000,-500.0,0.00018833,2]
[421358014,1777493433000,-172.58626172,0.00019244,2]
[421358029,1777493433000,-2448.0892418,0.00019413,2]
[421358027,1777493433000,-6244.72206946,0.00019413,2]
[421358028,1777493433000,-45504.3355507,0.00019413,2]
[421358026,1777493433000,-811.38375138,0.00019413,2]
[421358025,1777493433000,-2988.11337052,0.00019413,2]
[421358022,1777493433000,-151.0,0.00019401,2]
[421358024,1777493433000,-151.0,0.00019401,2]
[421358013,1777493433000,-44577.5339,0.00019213,2]
[421358021,1777493433000,-151.0,0.00019401,2]
[421358020,1777493433000,-151.0,0.00019401,2]
[421358018,1777493433000,-151.0,0.00019401,2]
[421358019,1777493433000,-151.0,0.00019401,2]
[421358015,1777493433000,-2500.0,0.00019313,2]
[421358016,1777493433000,-166.66,0.00019337,2]
[421358017,1777493433000,-151.0,0.00019401,2]
[421358023,1777493433000,-151.0,0.00019401,2]
[421358060,1777493438000,-715.72624113,0.00019413,2]
[421358063,1777493438000,-7756.7354226,0.00019413,2]
[421358068,1777493438000,-380.52932165,0.00019413,2]
[421358077,1777493440000,-758.89110544,0.00019413,2]
[421358074,1777493440000,-626.03999996,0.00019413,2]
[421358073,1777493440000,-2500.0,0.00019313,2]
[421358076,1777493440000,-1045.19488352,0.00019413,2]
[421358075,1777493440000,-30668.74154793,0.00019413,2]
[421358102,1777493443000,-4742.89298619,0.00019413,2]
[421358114,1777493447000,-1271.00044076,0.00019413,2]
[421358113,1777493447000,-1248.20769607,0.00019413,2]
[421358110,1777493447000,-1508.949995,0.00019413,2]
[421358111,1777493447000,-1496.76242091,0.00019413,2]
[421358112,1777493447000,-749.04460667,0.00019413,2]
[421358183,1777493534000,10000.0,0.00027945,120]
[421358184,1777493561000,10000.0,0.00027945,120]
[421358185,1777493579000,10000.0,0.00027945,120]
[421358186,1777493595000,10000.0,0.00027945,120]
[421358187,1777493607000,502.0,0.0003,120]
[421358188,1777493615000,10000.0,0.00027945,120]
[421358189,1777493637000,10000.0,0.00027397,120]
[421358190,1777493654000,10000.0,0.00027397,120]
[421358191,1777493671000,10000.0,0.00027397,120]
[421358192,1777493692000,10000.0,0.00029589,120]
[421358193,1777493709000,10000.0,0.00029589,120]
[421358194,1777493729000,10000.0,0.00029589,120]
[421358195,1777493747000,10000.0,0.00029589,120]
[421358196,1777493764000,10000.0,0.00027123,120]
[421358197,1777493786000,10000.0,0.00027123,120]
[421358198,1777493846000,8365.0,0.00026849,120]
[421358199,1777494169000,1472.0,0.00025978,120]
[421358200,1777494169000,1472.0,0.00028864,120]
[421358201,1777494548000,524.19079588,8.5e-05,3]
[421358220,1777494631000,-221739.009,0.00019113,2]
[421358219,1777494631000,-162.31979731,0.00018943,2]
[421358216,1777494631000,-2712.0,0.0001831,5]
[421358211,1777494631000,-300.0,0.0001635,2]
[421358218,1777494631000,-839.0,0.0001831,5]
[421358217,1777494631000,-658.0,0.0001831,5]
[421358215,1777494631000,-300.0,0.0001782,2]
[421358214,1777494631000,-751.11,0.000165,2]
[421358213,1777494631000,-204.55195495,0.000165,5]
[421358203,1777494631000,-694.3940699,0.00012,2]
[421358210,1777494631000,-2000.0,0.000162,2]
[421358209,1777494631000,-2500.0,0.000132,2]
[421358208,1777494631000,-2500.0,0.000132,2]
[421358206,1777494631000,-338.48866119,0.00013199,2]
[421358207,1777494631000,-5000.0,0.00013199,2]
[421358205,1777494631000,-207586.77980863,0.00012,2]
[421358204,1777494631000,-675.39141624,0.00012,2]
[421358202,1777494631000,-300.0,0.00011999,2]
[421358221,1777494631000,-2731.93646211,0.00019113,2]
[421358212,1777494631000,-2500.0,0.0001635,2]
[421358223,1777494631000,-12918.02167462,0.00019213,2]
[421358237,1777494631000,-161.0,0.00021,2]
[421358224,1777494631000,-11823.07342538,0.00019213,2]
[421358245,1777494631000,-122.70087969,0.00022,2]
[421358243,1777494631000,-161.0,0.00022,2]
[421358240,1777494631000,-5000.0,0.00021918,2]
[421358238,1777494631000,-161.0,0.00021,2]
[421358244,1777494631000,-161.0,0.00022,2]
[421358241,1777494631000,-151.0,0.00022,2]